Cogmind - Beta 10.1 *** ADVENTURER MODE // 2021.03.22 @ 22:23:41 Player: XSPEEDYDI Result: Destroyed by as-85159 with Assembled F-torch Performance ------------- Evolutions (0) 0 Regions Visited (2) 400 Robots Destroyed (35) 175 Value Destroyed (448) 448 Prototype IDs (0) 0 Alien Tech Used (0) 0 Bonus (0) 0 TOTAL SCORE: 1023 Bonus ------- None Cogmind --------- Core Integrity 0/250 Matter 295/300 Energy 237/265 System Corruption 3% Temperature Cool (167) Movement Walking (180) Ox2 Location -10/Mines Parts ------- > --- POWER (1) -------- Reinforced Ion Engine > --- PROPULSION (2) --- Aluminum Leg Aluminum Leg > --- UTILITY (2) ------ Large Storage Unit High-capacity Storage Unit > --- WEAPON (2) ------- Mining Laser > --- INVENTORY (18) --- Reinforced Ion Engine Light Deuterium Engine Light Nuclear Core Aluminum Leg Improved Heat Sink Weight Redist. System Transport Network Coupler Power Shielding Propulsion Shielding Propulsion Shielding Datajack Datajack Datajack Datajack Datajack Peak State ------------ > --- POWER ------------ Light Nuclear Core > --- PROPULSION ------- Wheel Wheel > --- UTILITY ---------- Small Storage Unit Medium Storage Unit > --- WEAPON ----------- Assault Rifle Light Assault Rifle > --- INVENTORY -------- Aluminum Leg Aluminum Leg Aluminum Leg Wheel Improved Heat Sink Power Shielding Medium Laser Datajack [Rating: 10] Favorites ----------- Power Reinforced Ion Engine Engine Reinforced Ion Engine Power Core Light Nuclear Core Propulsion Aluminum Leg Leg Aluminum Leg Wheel Wheel Utility High-capacity Storage Unit Storage High-capacity Storage Unit Processor Transport Network Coupler Weapon Assault Rifle Energy Gun Medium Laser Ballistic Gun Assault Rifle Special Weapon Mining Laser Build | -11 -10 -10 ------- Run | Scr Mat Min Slots Evolved . | . . . Power . | . . . Propulsion . | . . . Utility . | . . . Weapon . | . . . Parts Attached 20 | 7 12 1 Power 3 | 1 2 . Engine 2 | 1 1 . Core 1 | . 1 . Reactor . | . . . Propulsion 5 | 2 3 . Treads . | . . . Leg 2 | . 2 . Wheel 3 | 2 1 . Hover . | . . . Flight . | . . . Utility 6 | 1 5 . Device . | . . . Storage 5 | 1 4 . Processor 1 | . 1 . Hackware . | . . . Protection . | . . . Artifact . | . . . Weapon 6 | 3 2 1 Energy Gun 1 | 1 . . Energy Cannon . | . . . Ballistic Gun 4 | 2 2 . Ballistic Cannon . | . . . Launcher . | . . . Special Weapon 1 | . . 1 Impact Weapon . | . . . Slashing Weapon . | . . . Piercing Weapon . | . . . Special Melee Weapon . | . . . Unidentified Prototypes . | . . . Parts Lost 3 | . 1 2 Power . | . . . Propulsion 1 | . 1 . Utility . | . . . Weapon 2 | . . 2 Highest Loss Streak 1 | . 1 1 Average Slot Usage (%) 98 | . 99 96 Engine 11 | . 11 14 Core 2 | . 2 . Leg 14 | . 9 28 Wheel 12 | . 17 . Storage 26 | . 26 28 Processor 1 | . 1 . Ballistic Gun 26 | . 28 23 Naked Turns . | . . . Heaviest Build 62 | 7 62 62 Greatest Support 20 | 20 20 20 Greatest Overweight (x) 3 | . 3 3 Average Overweight (x) 1 | . 1 2 Largest Inventory Capacity 18 | 4 18 18 Average Capacity 14 | 4 14 18 Most Carried 16 | 4 16 16 Average Carried 11 | 2 11 14 Final Capacity 18 | 4 18 18 Final Carried 15 | 4 14 15 Class Distribution -------------------- 100% | Mutant Dominant Class ---------------- Mutant | -10/Materials Mutant | -10/Mines Resources | -11 -10 -10 ----------- Run | Scr Mat Min Matter Collected 923 | 335 445 143 Remotely . | . . . Salvage Created 794 | 128 616 50 Parts 63 | 22 41 . Haulers Intercepted 2 | . 2 . Recyclers Shooed . | . . . Parts Field Recycled . | . . . Retrieved Matter . | . . . Parts Self-Destructed . | . . . Prevented . | . . . Kills | -11 -10 -10 ------- Run | Scr Mat Min Combat Hostiles Destroyed 24 | 1 16 7 Guns 21 | 1 16 4 Cannons 3 | . . 3 Classes Destroyed 7 | 3 3 1 Worker 2 | 1 1 . Tunneler 5 | 4 1 . Hauler 2 | . 2 . Watcher 2 | . 2 . Swarmer 9 | . 9 . Grunt 8 | 1 7 . Assembled 7 | . . 7 Best Kill Streak 5 | 5 3 3 Combat Bots Only 3 | 1 3 3 Max Kills in Single Turn 1 | 1 1 1 Gunslinging . | . . . Exploded . | . . . Melee . | . . . Uniques/NPCs Destroyed . | . . . Combat | -11 -10 -10 -------- Run | Scr Mat Min Damage Taken 900 | . 503 397 Core 252 | . 114 138 Absorbed by Shields . | . . . Core Remaining (%) 100 | 100 . . Volleys Fired 105 | 9 75 21 Largest 2 | 2 2 2 Hottest 100 | 40 40 100 Shots Fired 194 | 18 150 26 Gun 188 | 18 150 20 Cannon . | . . . Launcher . | . . . Special 6 | . . 6 Kinetic 188 | 18 150 20 Thermal 6 | . . 6 Explosive . | . . . Electromagnetic . | . . . Robot Hit Streak 25 | 5 25 15 Robot Miss Streak 4 | 2 4 1 Penetration Max . | . . . Secondary Targets 4 | . 4 . Max Gunslinging Chain 1 | . 1 . Shots Hit Robots 137 | 10 103 24 Core Hits 52 | 6 33 13 Critical Hits 1 | 1 . . Critical Kills 1 | 1 . . Critical Parts Destroyed . | . . . Melee Attacks . | . . . Impact . | . . . Slashing . | . . . Piercing . | . . . Sneak Attacks . | . . . Combat Hostiles . | . . . Follow-up Attacks . | . . . Damage Inflicted 1481 | 120 986 375 Guns 1361 | 120 986 255 Cannons . | . . . Explosions . | . . . Melee . | . . . Ramming . | . . . Kinetic 1361 | 120 986 255 Thermal 120 | . . 120 Explosive . | . . . Electromagnetic . | . . . Impact . | . . . Slashing . | . . . Piercing . | . . . Highest Corruption 3 | . 1 3 Average Corruption 1 | . 1 1 Corruption Purged . | . . . Effects 4 | . . 4 Message Errors 2 | . . 2 Matter Fused 1 | . . 1 Targeting Errors 1 | . . 1 Overload Shots . | . . . Overflow Damage 8 | . . 8 Projectiles 8 | . . 8 Explosions . | . . . Melee . | . . . Knockbacks . | . . . Impact . | . . . Kinetic . | . . . Secondary . | . . . Self-Inflicted Damage . | . . . Shots . | . . . Rammed . | . . . Targets Rammed . | . . . Kicked . | . . . Crushed . | . . . Highest Temperature 154 | . 18 154 Average Temperature 22 | . 5 51 Received Heat Transfer 378 | . 258 120 Siege Activations . | . . . Robots Corrupted . | . . . Combat Hostiles . | . . . Parts Fried . | . . . Impact Corruptions . | . . . Robots Melted . | . . . Combat Hostiles . | . . . Parts Melted . | . . . Heat Transferred 250 | . . 250 Parts Sabotaged . | . . . Parts Stolen . | . . . Parts Stripped . | . . . Power Chain Reactions . | . . . Missiles Intercepted . | . . . Alert | -11 -10 -10 ------- Run | Scr Mat Min Peak Influence 278 | 45 278 35 Initial 35 | . 25 35 Average 95 | 11 127 31 Maximum Alert Level 1 | . 1 . Low Security (%) 85 | 100 78 100 Level 1 14 | . 21 . Level 2 . | . . . Level 3 . | . . . Level 4 . | . . . Level 5 . | . . . High Security . | . . . Max Security . | . . . Squads Dispatched 3 | . 3 . Investigation 3 | . 3 . Extermination . | . . . Reinforcement . | . . . Assault . | . . . Garrison . | . . . Intercept . | . . . Construction Impeded . | . . . Haulers Reinforced . | . . . Stealth | -11 -10 -10 --------- Run | Scr Mat Min Distress Signals 2 | . . 2 Communications Jammed . | . . . Distress Signals . | . . . Times Spotted 37 | 1 24 12 Peak Tracking Total 6 | 1 4 6 Tactical Retreats 2 | . 1 1 Traps | -11 -10 -10 ------- Run | Scr Mat Min Traps Triggered 1 | . 1 . Indirectly . | . . . Trap Hack Attempts . | . . . Triggered . | . . . Disarmed . | . . . Reprogrammed . | . . . Reused . | . . . Traps Extracted . | . . . Installed . | . . . Triggered . | . . . Machines | -11 -10 -10 ---------- Run | Scr Mat Min Machines Disabled . | . . . Max in Single Turn . | . . . Machines Sabotaged . | . . . Garrisons Compromised . | . . . Overloaded Fab Kills . | . . . Fab Network Shutdowns . | . . . Hacking | -11 -10 -10 --------- Run | Scr Mat Min Machines Accessed 8 | . 8 . Terminals 6 | . 6 . Fabricators . | . . . Repair Stations . | . . . Recycling Units 2 | . 2 . Scanalyzers . | . . . Garrison Access . | . . . Total Hacks 26 | . 26 . Successful 17 | . 17 . Failed 9 | . 9 . Catastrophic 1 | . 1 . Database Lockouts . | . . . Manual 11 | . 11 . Terminals 22 | . 22 . Fabricators . | . . . Repair Stations . | . . . Recycling Units 4 | . 4 . Scanalyzers . | . . . Garrison Access . | . . . Terminal Hacks 12 | . 12 . Record 12 | . 12 . Fabricator Hacks . | . . . Repair Station Hacks . | . . . Recycling Unit Hacks 3 | . 3 . Report Inventory 2 | . 2 . Retrieve Components 1 | . 1 . Scanalyzer . | . . . Garrison Access Hacks . | . . . Unauthorized Hacks 2 | . 2 . Terminals 2 | . 2 . Botnet 2 | . 2 . Fabricators . | . . . Repair Stations . | . . . Recycling Units . | . . . Scanalyzers . | . . . Garrison Access . | . . . Data Cores Recovered . | . . . Used . | . . . Hacking Detections 7 | . 7 . Full Trace Events 6 | . 6 . Feedback Events . | . . . Feedback Blocked . | . . . Robot Schematics Acquired . | . . . Robots Built . | . . . Matter . | . . . Time . | . . . Total Robot Build Rating . | . . . Part Schematics Acquired . | . . . Parts Built . | . . . Matter . | . . . Time . | . . . Total Part Build Rating . | . . . Parts Repaired . | . . . Time . | . . . Parts Recycled . | . . . Recycled Matter . | . . . Retrieved Matter . | . . . Retrieved Components 3 | . 3 . Parts Scanalyzed . | . . . Part Schematics Acquired . | . . . Parts Damaged . | . . . Bothacking | -11 -10 -10 ------------ Run | Scr Mat Min Used RIF Installer . | . . . Robots Hacked . | . . . Non-combat . | . . . Combat . | . . . Robot Hacks Applied . | . . . Relay Couplers Released . | . . . Robots Rewired . | . . . Allies Hacked . | . . . Hacks Repelled . | . . . Allies | -11 -10 -10 -------- Run | Scr Mat Min Total Allies . | . . . Largest Group . | . . . Highest-Rated Group . | . . . Highest-Rated Ally . | . . . Total Orders . | . . . Ally Attacks . | . . . Total Damage . | . . . Kills . | . . . Allies Corrupted . | . . . Allies Melted . | . . . Intel | -11 -10 -10 ------- Run | Scr Mat Min Robot Analysis Total . | . . . Derelict Logs Recovered 1 | . . 1 Drone Launches . | . . . Drone Recoveries . | . . . Exploration | -11 -10 -10 ------------- Run | Scr Mat Min Turns Passed 1634 | 106 1109 419 Spaces Moved 940 | 86 679 175 Core 17 | 17 . . Treads . | . . . Legs 354 | . 179 175 Wheels 569 | 69 500 . Hover . | . . . Flight . | . . . Fastest Speed 50 | 50 80 180 Average Speed 132 | 74 121 205 Slowest Speed 210 | 80 210 210 Overloaded Moves . | . . . Propulsion Burnouts . | . . . Robots Hopped . | . . . Cave-ins Triggered . | . . . Exploration Rate (%) 46 | 6 94 38 Regions Visited 2 Branch Regions 1 Pre-discovered Areas 1 | . . 1 Known Exits Taken . | . . . Unknown Exits Taken 2 | 1 1 . Scrap Searched 1 | . . 1 Spaces Dug . | . . . Terrain Destroyed 1 | . . 1 Melee . | . . . Projectile 1 | . . 1 AOE . | . . . Terrain Rammed . | . . . Walls Destroyed . | . . . Machines Disabled . | . . . Actions | -11 -10 -10 --------- Run | Scr Mat Min Total 1129 | 110 820 199 Wait 27 | . 27 . Move 938 | 85 678 175 Hop . | . . . Pick Up 30 | 9 19 2 Fast Attach 4 | 1 3 . Attach 8 | 5 2 1 Detach . | . . . Swap 8 | 1 7 . Drop 9 | . 9 . Fire 105 | 9 75 21 Melee . | . . . Ram . | . . . Kick . | . . . Crush . | . . . Escape Stasis . | . . . Rewire . | . . . Trap . | . . . Miscellaneous . | . . . Route ------- -11/Scrapyard -10/Materials (discovered 5 exits: [*Mat x3] / [*Min x2]) -10/Mines (discovered 1 exit: [*Exi]) History --------- Turn | Location | Event 2 | -11/Scrapyard | Met Revision 17 73 | -11/Scrapyard | Discovered new exit (range 8) 107 | -11/Scrapyard | Entered Materials 309 | -10/Materials | Build established: Mutant 362 | -10/Materials | Discovered new exit (range 3) 485 | -10/Materials | Discovered new exit (range 5) 662 | -10/Materials | Discovered new exit (range 13) 701 | -10/Materials | Discovered new exit (range 4) 1119 | -10/Materials | Discovered new exit (range 12) 1216 | -10/Materials | Entered Mines 1307 | -10/Mines | Deemed a non-threat by the Exiles lab entrance 1309 | -10/Mines | Discovered new exit (range 5) 1383 | -10/Mines | Assembled infested the area 1496 | -10/Mines | Learned location of Storage (-7) 1528 | -10/Mines | Core integrity fell below 50% 1603 | -10/Mines | Core integrity fell below 20% 1635 | -10/Mines | Destroyed by as-85159 with Assembled F-torch Last Messages --------------- Acquired 16 matter. Acquired 10 matter. as-48525 destroyed. Acquired 11 matter. Acquired Lgt. Deuterium Engine. Acquired 20 matter. Acquired 27 matter. Acquired 3 matter. as-88517 destroyed. Acquired 3 matter. Assault Rifle destroyed. System corrupted by crushing effect (+2). Acquired Mining Laser. Destroyed Asb. Hover Unit. as-99022 destroyed. System corrupted: Matter fused (-7). as-44106 destroyed. as-61280 destroyed. Acquired 12 matter. [Achievement: First Step to Greatness] Map ----- +----------------------------------------------------+ | | | | | ?????????????????????????????????????????????????? | | ?????????????????????????????????????????????????? | | ?????????????????????????????????????????????????? | | ?????????????????????????????????????????????????? | | ?????????????????????????????????????????????????? | | ?????????????????????????????????????????????????? | | ?????????????????????????????????????????????????? | | ?????????????????????????????????????????????????? | | ?????????????????????????????????????????????????? | | ?????????????????????????????????????????????????? | | ?????????????????????????????????????????????????? | | ?????????????????????????????????????????????????? | | ?????????????????????????????????????????????????? | | ?????????????????????????????????????????????????? | | ?????????????????????????????????????????????????? | | ??????????????????????????####???????????????????? | | ??????????????????????????# ???????????????????? | | ??????????????????????????# ???????????????????? | | ??????????????????????????# #???????????????????? | | ??????????????????????????# #???????????????????? | | ??????????????????????????# #???????????????????? | | ????????????????????????### #???????????????????? | | ??????????????????????###;#* #???????????????????? | | ??????????????????????#=a@ % #???????????????????? | | ??????????????????????#%###!%#???????????????????? | | ?????????????????????%=]#?#==#???????????????????? | | ????????????????????#####?# #???????????????????? | | ??????????????????????????#! #???????????????????? | | ???????????????????####???# #???????????????????? | | ??????????????????## ##??# #???????????????????? | | ??????????????????# ##?# #???????????????????? | | ??????????????????# ### #???????????????????? | | ??????????????????# #???????????????????? | | ?????????????????## #???????????????????? | | ????????????????## ######???????????????????? | | ???????????????## #????????????????????????? | | ???????????????# ##???????????????????????? | | ??????????????## #######?????????????????? | | ?????????????## #??????????? ### | | ?????????????# ## ###### #??????????? | | ?????????????# ######????# #??????????? | | ?????????????## #??????????# #?????###### | | ??????????????####???????????# #?????# # | | ?????????????????????????????# ####### ?? | | ?????????????????????????????# ! ] #?? ??? | | ???????????????????######????######### #??# #??? | | ???????????????????# ######???????# #??# #??? | | ????????????????????# #####???# #??# #??? | +----------------------------------------------------+ Best States ------------- Heat Dissipation 25 Energy Generation 14 Energy Capacity 265 Matter Stores 350 Matter Capacity 350 Sight Range 16 Terrain Scan Density 10 Resistance: KI 20 Resistance: TH 20 Resistance: EX 20 Resistance: EM 20 Resistance: I 20 Resistance: S 20 Resistance: P 20 Evasion (%) 50 Offensive Hacking 10 Item Schematics ----------------- None Robot Schematics ------------------ None Fabricated ------------ Nothing Alien Tech Used ----------------- None Achievements -------------- Crack Shot First Step to Greatness Librarian Loot Pinata One Hack Too Far True Hacker Challenges ------------ None Game ------ Seed SwarmNovaCoupler Manual? 0 Play Time 00:37:48 Cumulative 1.2 hours Start 2021.03.22 @ 20:08:39 End 2021.03.22 @ 22:23:41 Sessions 1 Manual Loads 0 Difficulty Adventurer Special Mode None Game No. 1 Rogue 0 Adventurer 1 Explorer 0 Win Type - Total 0 Types 0/0/0/0/0/0/0/0/0 Lore% 1 Gallery% 1 Achievement% 2 Wizard Run 0 Options --------- ASCII 0 Keyboard 0 Movement Mouse Keybinds 0 Fullscreen 1 Font 18/X11 Map View 76x50 Tactical HUD 0 Map Filters NONE Filters NONE Steam X RUN: 5780b620-d910-4e47-9f11-0ff9b74aa4ed